fUST/lending_fUST_20250326
["ID","MTS","AMOUNT","RATE_DAILY","PERIOD"]
[356705656,1742995552432,-811.92494287,0.00013699,2]
[356705657,1742995552455,-811.92494287,0.00013699,2]
[356705658,1742995552476,-811.92494287,0.00013699,2]
[356705659,1742995552498,-811.92494287,0.00013699,2]
[356705660,1742995552520,-811.92494287,0.00013699,2]
[356705661,1742995552541,-811.92494287,0.00013699,2]
[356705662,1742995552562,-811.92494287,0.00013699,2]
[356705663,1742995552584,-811.92494287,0.00013699,2]
[356705664,1742995552606,-811.92494287,0.00013699,2]
[356705665,1742995552628,-811.92494287,0.00013699,2]
[356705666,1742995552650,-811.92494287,0.00013699,2]
[356705667,1742995552672,-811.92494287,0.00013699,2]
[356705668,1742995552695,-809.02521092,0.00013699,2]
[356705669,1742995552717,-809.02521092,0.00013699,2]
[356705670,1742995552739,-809.02521092,0.00013699,2]
[356705671,1742995552762,-809.02521092,0.00013699,2]
[356705672,1742995552784,-809.02521092,0.00013699,2]
[356705673,1742995552808,-809.02521092,0.00013699,2]
[356705674,1742995552831,-809.02521092,0.00013699,2]
[356705675,1742995552854,-809.02521092,0.00013699,2]
[356705676,1742995552878,-809.02521092,0.00013699,2]
[356705677,1742995552901,-809.02521092,0.00013699,2]
[356705678,1742995552923,-809.02521092,0.00013699,2]
[356705679,1742995552946,-809.02521092,0.00013699,2]
[356705680,1742995552969,-809.02521092,0.00013699,2]
[356705681,1742995552992,-809.02521092,0.00013699,2]
[356705682,1742995553014,-809.02521092,0.00013699,2]
[356705683,1742995553037,-809.02521092,0.00013699,2]
[356705684,1742995553061,-809.02521092,0.00013699,2]
[356705685,1742995553083,-809.02521092,0.00013699,2]
[356705686,1742995553105,-809.02521092,0.00013699,2]
[356705687,1742995553128,-809.02521092,0.00013699,2]
[356705688,1742995553150,-809.02521092,0.00013699,2]
[356705689,1742995553172,-809.02521092,0.00013699,2]
[356705690,1742995553195,-809.02521092,0.00013699,2]
[356705691,1742995553217,-809.02521092,0.00013699,2]
[356705692,1742995553240,-809.02521092,0.00013699,2]
[356705693,1742995553263,-809.02521092,0.00013699,2]
[356705694,1742995553286,-809.02521092,0.00013699,2]
[356705695,1742995553309,-809.02521092,0.00013699,2]
[356705696,1742995553331,-767.49,0.00013919,2]
[356705697,1742995553352,-500.0,0.00013919,2]
[356705698,1742995553372,-151.0,0.00013919,2]
[356705699,1742995553395,-500.0,0.00013919,2]
[356705700,1742995553416,-151.0,0.00013919,2]
[356705701,1742995553437,-500.0,0.00013971,2]
[356705702,1742995553459,-193.29,0.00013971,2]
[356705703,1742995553480,-151.0,0.00013971,2]
[356705704,1742995553501,-151.0,0.00013971,2]
[356705705,1742995553521,-151.0,0.00013971,2]
[356705706,1742995553541,-151.0,0.00013971,2]
[356705707,1742995553562,-460.0,0.00014,3]
[356705708,1742995553583,-151.0,0.00014,2]
[356705709,1742995553604,-500.0,0.00014106,2]
[356705710,1742995553626,-3351.90476199,0.00014107,2]
[356705711,1742995553646,-151.0,0.00014107,2]
[356705712,1742995553668,-767.49,0.00014193,2]
[356705713,1742995553689,-500.0,0.00014193,2]
[356705714,1742995553710,-500.0,0.00014193,2]
[356705715,1742995553733,-151.0,0.00014194,2]
[356705716,1742995553754,-509.0,0.00014213,2]
[356705717,1742995553774,-326.09863008,0.00014308,2]
[356705718,1742995553796,-767.49,0.00014467,2]
[356705719,1742995553821,-500.0,0.00014467,2]
[356705720,1742995553842,-500.0,0.00014467,2]
[356705721,1742995553863,-767.49,0.00014741,2]
[356705722,1742995553883,-500.0,0.00014741,2]
[356705723,1742995553904,-500.0,0.00014741,2]
[356705724,1742995553926,-500.0,0.00014856,2]
[356705725,1742995553947,-500.0,0.00014856,2]
[356705726,1742995553969,-500.0,0.00014856,2]
[356705727,1742995553992,-632.62304774,0.00014856,2]
[356705728,1742995554015,-151.0,0.00014857,2]
[356705729,1742995554037,-181.465076,0.00014857,2]
[356705730,1742995554060,-151.0,0.00014857,2]
[356705731,1742995554081,-151.0,0.00014857,2]
[356705732,1742995554101,-151.0,0.00014857,2]
[356705733,1742995554119,-151.0,0.00014857,2]
[356705734,1742995554141,-188142.7038092,0.00014857,2]
[356705736,1742995629083,-5000.0,0.00011691,2]
[356705737,1742995629106,-500.0,0.00012001,2]
[356705738,1742995629131,-261.46,0.00012001,2]
[356705739,1742995629154,-500.0,0.00012275,2]
[356705740,1742995629176,-500.0,0.00012549,2]
[356705741,1742995629198,-500.0,0.00012823,2]
[356705742,1742995629219,-500.0,0.00013097,2]
[356705743,1742995629241,-500.0,0.00013371,2]
[356705744,1742995629264,-500.0,0.00013645,2]
[356705745,1742995629285,-151.0,0.00013699,2]
[356705746,1742995629307,-500.0,0.00013919,2]
[356705747,1742995629328,-500.0,0.00014193,2]
[356705748,1742995629349,-500.0,0.00014467,2]
[356705749,1742995629370,-330.57234632,0.00014709,2]
[356705750,1742995629392,-500.0,0.00014741,2]
[356705751,1742995629413,-2528.46893585,0.00014773,2]
[356705752,1742995629435,-447.30334591,0.00014856,2]
[356705753,1742995629457,-500.0,0.00014856,2]
[356705754,1742995629479,-500.0,0.00014856,2]
[356705755,1742995629502,-500.0,0.00014856,2]
[356705756,1742995629656,-500.0,0.00014856,2]
[356705757,1742995629681,-500.0,0.00014856,2]
[356705758,1742995629704,-500.0,0.00014856,2]
[356705759,1742995629728,-500.0,0.00014856,2]
[356705760,1742995629751,-649.6652821,0.00014856,2]
[356705761,1742995629775,-500.0,0.00014856,2]
[356705762,1742995629798,-500.0,0.00014856,2]
[356705763,1742995629820,-500.0,0.00014856,2]
[356705764,1742995629846,-500.0,0.00014856,2]
[356705765,1742995629868,-500.0,0.00014856,2]
[356705766,1742995629890,-151.0,0.00014857,2]
[356705767,1742995629911,-133857.2961908,0.00014857,2]
[356705768,1742995629931,-500.0,0.00014873,2]
[356705769,1742995629950,-500.0,0.00014873,2]
[356705770,1742995629969,-525.54896347,0.00014873,2]
[356705771,1742995629989,-500.0,0.00014873,2]
[356705772,1742995630010,-500.0,0.00014873,2]
[356705773,1742995630029,-500.0,0.00014873,2]
[356705774,1742995630050,-500.0,0.00014873,2]
[356705775,1742995630071,-500.0,0.00014873,2]
[356705776,1742995630103,-500.0,0.00014873,2]
[356705777,1742995630128,-500.0,0.00014873,2]
[356705778,1742995630150,-500.0,0.00014873,2]
[356705779,1742995630172,-500.0,0.00014873,2]
[356705780,1742995630195,-500.0,0.00014873,2]
[356705781,1742995630217,-500.0,0.00014873,2]
[356705782,1742995630240,-202.207,0.00014897,2]
[356705783,1742995630262,-160.0,0.00014965,2]
[356705784,1742995630284,-160.0,0.00014965,2]
[356705785,1742995630306,-160.0,0.00014965,2]
[356705786,1742995630329,-418.40181814,0.00014965,2]
[356705787,1742995630351,-834.83451184,0.00014965,2]
[356705788,1742995630372,-21580.0,0.00015,2]
[356705789,1742995630395,-285.78,0.00015015,2]
[356705790,1742995630416,-500.0,0.00015015,2]
[356705791,1742995630438,-326.09863008,0.00015018,2]
[356705792,1742995630460,-500.0,0.00015289,2]
[356705793,1742995630482,-163.55403685,0.00015559,2]
[356705794,1742995630503,-500.0,0.00015563,2]
[356705795,1742995630524,-326.09863008,0.00015727,2]
[356705796,1742995630546,-500.0,0.00015837,2]
[356705797,1742995630568,-500.0,0.00016111,2]
[356705798,1742995630589,-500.0,0.00016385,2]
[356705799,1742995630609,-326.09863008,0.00016436,2]
[356705800,1742995630630,-513.80235737,0.00016438,7]
[356705801,1742995630650,-151.0,0.00016438,2]
[356705802,1742995630671,-151.0,0.00016438,2]
[356705803,1742995630692,-151.0,0.00016438,2]
[356705804,1742995630714,-500.0,0.00016659,2]
[356705805,1742995630736,-500.0,0.00016933,2]
[356705806,1742995630757,-477.50454649,0.00017207,2]
[356705807,1742995630778,-151.0,0.00018029,2]
[356705808,1742995630799,-151.0,0.00018081,2]
[356705809,1742995630819,-151.0,0.00018081,2]
[356705810,1742995630845,-541.0,0.00018218,2]
[356705811,1742995630867,-150.0,0.00018218,2]
[356705812,1742995630889,-2263.0,0.00018218,2]
[356705813,1742995630911,-1915.0,0.00018218,2]
[356705814,1742995630933,-151.0,0.00018218,2]
[356705815,1742995630954,-400.0,0.00018218,2]
[356705816,1742995630975,-500.0,0.0001824,2]
[356705817,1742995630997,-500.0,0.0001824,2]
[356705818,1742995631018,-700.0,0.0001824,2]
[356705819,1742995631040,-700.0,0.0001824,2]
[356705820,1742995631061,-500.0,0.0001824,2]
[356705821,1742995631083,-700.0,0.0001824,2]
[356705822,1742995631104,-700.0,0.0001824,2]
[356705823,1742995631125,-500.0,0.0001824,2]
[356705824,1742995631146,-500.0,0.0001824,2]
[356705825,1742995631167,-700.0,0.0001824,2]
[356705826,1742995631188,-500.0,0.0001824,2]
[356705827,1742995631208,-500.0,0.0001824,2]
[356705828,1742995631228,-500.0,0.0001824,2]
[356705829,1742995631250,-500.0,0.0001824,2]
[356705830,1742995631272,-700.0,0.0001824,2]
[356705831,1742995631298,-500.0,0.0001824,2]
[356705832,1742995631320,-500.0,0.0001824,2]
[356705833,1742995631341,-500.0,0.0001824,2]
[356705834,1742995631366,-700.0,0.0001824,2]
[356705835,1742995631388,-500.0,0.0001824,2]
[356705836,1742995631409,-700.0,0.0001824,2]
[356705837,1742995631429,-500.0,0.0001824,2]
[356705838,1742995631450,-700.0,0.0001824,2]
[356705839,1742995631471,-500.0,0.0001824,2]
[356705840,1742995631495,-700.0,0.0001824,2]
[356705841,1742995631516,-500.0,0.0001824,2]
[356705842,1742995631537,-700.0,0.0001824,2]
[356705843,1742995631559,-500.0,0.0001824,2]
[356705844,1742995631580,-860.68841515,0.0001824,2]
[356705845,1742995631601,-700.0,0.0001824,2]
[356705846,1742995631623,-1272.74005206,0.0001824,2]
[356705847,1742995631647,-500.0,0.0001824,2]
[356705848,1742995631667,-159.21,0.000186,2]
[356705849,1742995631689,-151.0,0.00018824,2]
[356705850,1742995631710,-151.0,0.00018824,2]
[356705851,1742995631731,-151.0,0.00018824,2]
[356705852,1742995631752,-151.0,0.00018824,2]
[356705853,1742995631773,-328.00646585,0.00018973,2]
[356705854,1742995631794,-500.0,0.00018973,2]
[356705855,1742995631815,-500.0,0.00018973,2]
[356705856,1742995631838,-414.97557051,0.00018973,2]
[356705857,1742995631859,-500.0,0.00018973,2]
[356705858,1742995631880,-500.0,0.00018973,2]
[356705859,1742995631901,-501.2797591,0.00018973,2]
[356705860,1742995631928,-500.0,0.00018973,2]
[356705861,1742995631948,-500.0,0.00018973,2]
[356705862,1742995631970,-500.0,0.00018973,2]
[356705863,1742995631993,-502.14983808,0.00018973,2]
[356705864,1742995632014,-500.0,0.00018973,2]
[356705865,1742995632034,-500.0,0.00018973,2]
[356705866,1742995632055,-151.0,0.0001899,2]
[356705867,1742995632075,-100309.5846951,0.0001899,2]
[356705868,1742995632095,-500.0,0.00019307,2]
[356705869,1742995632117,-2528.46893581,0.00019375,2]
[356705870,1742995632139,-1668.4011629,0.00019399,2]
[356705871,1742995632161,-200.0,0.000198,2]
[356705872,1742995632181,-201.35241065,0.000198,2]
[356705873,1742995632201,-1600.609188,0.0001988,5]
[356705874,1742995632222,-151.0,0.000199,2]
[356705875,1742995632243,-1000.0,0.000199,5]
[356705876,1742995632264,-1000.0,0.0001992,5]
[356705877,1742995632284,-1000.0,0.0001994,5]
[356705878,1742995632305,-1000.0,0.0001996,5]
[356705879,1742995632439,-1000.0,0.0001998,5]
[356705880,1742995632465,-293.9473459,0.00019999,2]
[356705881,1742995632487,-46697.30771251,0.0002,2]
[356705882,1742995641107,-3128.44444464,0.000132,2]
[356705883,1742995641131,-3128.44444452,0.00014107,2]
[356705884,1742995641154,-500.0,0.00014873,2]
[356705885,1742995641175,-500.0,0.00014873,2]
[356705886,1742995641197,-12458.93820146,0.00014965,2]
[356705887,1742995641221,-3128.44444452,0.00015314,2]
[356705888,1742995641244,-231.72115699,0.00016521,2]
[356705889,1742995644085,-2896.72328753,0.00016521,2]
[356705890,1742995644107,-3128.44444452,0.00017728,2]
[356705891,1742995644129,-500.0,0.0001824,2]
[356705892,1742995644150,-3128.44444452,0.00018934,2]
[356705893,1742995644172,-3435.9533898,0.0002,2]
[356705894,1742995644193,-49798.0,0.0002,30]
[356705895,1742995644213,-500.0,0.0002,2]
[356705896,1742995644233,-500.0,0.0002,2]
[356705897,1742995644255,-1000.0,0.0002,2]
[356705898,1742995644274,-4938.9571189,0.0002,2]
[356705899,1742995644295,-300.0,0.0002,8]
[356705900,1742995644316,-200.0,0.0002,2]
[356705901,1742995644337,-151.0,0.0002,2]
[356705902,1742995644358,-184.334172,0.0002,2]
[356705903,1742995644379,-151.0,0.0002,2]
[356705904,1742995644400,-151.0,0.0002,2]
[356705905,1742995644423,-1000.0,0.0002,5]
[356705906,1742995644443,-151.0,0.0002,2]
[356705907,1742995644462,-151.0,0.0002,2]
[356705908,1742995644482,-151.0,0.0002,2]
[356705909,1742995644504,-151.0,0.0002,2]
[356705910,1742995644524,-834.83451184,0.0002,30]
[356705911,1742995644544,-189.65924929,0.0002,2]
[356705912,1742995644565,-160.0,0.0002,3]
[356705913,1742995644584,-160.0,0.0002,3]
[356705915,1742995644604,-1000.0,0.0002,2]
[356705916,1742995644624,-150.0,0.0002,30]
[356705917,1742995644644,-151.0,0.0002,2]
[356705918,1742995644664,-151.0,0.0002,2]
[356705919,1742995644686,-3128.44444452,0.00020141,2]
[356705920,1742995644707,-151.0,0.000202,4]
[356705921,1742995644728,-1000.0,0.00020352,2]
[356705922,1742995644751,-507.96341946,0.00020352,2]
[356705923,1742995644771,-501.41748333,0.00020352,2]
[356705924,1742995644792,-1000.0,0.00020352,2]
[356705925,1742995644811,-939.26946243,0.00020352,2]
[356705926,1742995644833,-1000.0,0.00020352,2]
[356705927,1742995644858,-1000.0,0.00020352,2]
[356705928,1742995644878,-1000.0,0.00020352,2]
[356705929,1742995644899,-1000.0,0.00020352,2]
[356705930,1742995644922,-1000.0,0.00020352,2]
[356705931,1742995644944,-1000.0,0.00020352,2]
[356705932,1742995644964,-1000.0,0.00020352,2]
[356705933,1742995644985,-1000.0,0.00020352,2]
[356705934,1742995645017,-1000.0,0.00020352,2]
[356705935,1742995645042,-1000.0,0.00020352,2]
[356705936,1742995645062,-1000.0,0.00020403,2]
[356705937,1742995645083,-151.0,0.00020548,2]
[356705938,1742995645104,-151.0,0.00020548,2]
[356705939,1742995645125,-151.0,0.00020548,2]
[356705940,1742995645147,-154.877366,0.00020548,2]
[356705941,1742995645169,-953.670539,0.00020548,2]
[356705942,1742995645191,-2500.0,0.00020695,2]
[356705943,1742995645213,-2500.0,0.00020703,2]
[356705944,1742995645235,-2500.0,0.00020712,2]
[356705945,1742995645258,-2500.0,0.00020721,2]
[356705946,1742995645280,-2500.0,0.00020721,2]
[356705947,1742995645302,-2500.0,0.0002073,2]
[356705948,1742995645324,-2500.0,0.0002073,2]
[356705949,1742995645345,-2500.0,0.00020732,2]
[356705950,1742995645369,-151.0,0.00020732,2]
[356705951,1742995645392,-166.1112,0.00020732,2]
[356705952,1742995645419,-2500.0,0.00020741,2]
[356705953,1742995645442,-2500.0,0.00020749,2]
[356705954,1742995645468,-2500.0,0.00020758,2]
[356705955,1742995645490,-1078.83681086,0.00020767,2]
[356705957,1742995648079,-1010.57445486,0.00020767,2]
[356705961,1742995653100,-410.58873428,0.00020767,2]
[356705962,1742995653122,-2500.0,0.00020776,2]
[356705963,1742995653143,-2500.0,0.00020777,2]
[356705964,1742995653164,-15761.80983572,0.000208,2]
[356706052,1742995837915,-151.92,0.00010959,2]
[356706053,1742995837925,-198.554,0.00010959,2]
[356706054,1742995838774,-62.376,0.00010959,2]
[356706055,1742995838784,-3388.48385516,0.000125,2]
[356706056,1742995838793,-1896.35170191,0.00013373,2]
[356706057,1742995838802,-313.11234213,0.0001346,2]
[356706058,1742995838812,-21993.9594668,0.00013461,2]
[356706067,1742995840078,-6216.0135735,0.00013461,2]
[356706068,1742995840090,-173019.81331067,0.00013461,2]
[356706070,1742995840726,-13783.326816,0.00013461,2]
[356706161,1742995843284,-2255.58544918,0.00013461,2]
[356706162,1742995843296,-556.54228435,0.00013461,2]
[356706165,1742995844477,-17000.789804,0.00013461,2]
[356706174,1742995846083,-7405.29825273,0.00013461,2]
[356706175,1742995846095,-5913.70181781,0.00013461,2]
[356706176,1742995847510,-42667.490753,0.00013461,2]
[356706177,1742995847558,-2352.48873,0.00013461,2]
[356706193,1742996557161,-267.0,0.00010692,2]
[356706194,1742996557184,-267.0,0.000108,2]
[356706195,1742996557206,-198.84818064,0.00010859,2]
[356706196,1742996557231,-221.66575416,0.00010859,2]
[356706197,1742996557252,-217.44,0.00010959,2]
[356706198,1742996557275,-181.2,0.00010959,2]
[356706199,1742996557295,-225.7408863,0.00011447,2]
[356706200,1742996557317,-300.0,0.00012299,2]
[356706201,1742996557338,-7617.36625131,0.000123,2]
[356706202,1742996563057,207.96089408,0.000125,2]
[356706203,1742996565493,151.0,0.00010959,2]
[356706204,1742996576113,144.77803351,0.00010959,2]
[356706211,1742996832240,-610.27,0.00010959,2]
[356706212,1742996832265,-611.70824034,0.00012523,2]
[356706236,1742997032320,-5291.7968541,0.00012399,2]
[356706237,1742997032331,-1659.30773918,0.00013273,2]
[356706238,1742997032340,-460.83306993,0.00013301,2]
[356706239,1742997032350,-500.0,0.00013301,2]
[356706240,1742997032361,-500.0,0.00013301,2]
[356706241,1742997032371,-500.0,0.00013301,2]
[356706242,1742997032381,-500.0,0.00013301,2]
[356706243,1742997032393,-500.0,0.00013301,2]
[356706244,1742997032403,-500.0,0.00013301,2]
[356706245,1742997032412,-500.0,0.00013301,2]
[356706246,1742997032422,-250.0,0.00013301,2]
[356706247,1742997032432,-500.0,0.00013301,2]
[356706248,1742997032441,-500.0,0.00013301,2]
[356706249,1742997032452,-500.0,0.00013301,2]
[356706250,1742997032461,-450.01223537,0.00013301,2]
[356706251,1742997032472,-500.0,0.00013301,2]
[356706252,1742997032482,-500.0,0.00013301,2]
[356706253,1742997032493,-300.0,0.00013301,2]
[356706254,1742997032503,-500.0,0.00013301,2]
[356706255,1742997032513,-500.0,0.00013301,2]
[356706256,1742997032523,-500.0,0.00013301,2]
[356706257,1742997032534,-500.0,0.00013301,2]
[356706258,1742997032544,-24900.0,0.00013302,2]
[356706259,1742997032554,-398.1940333,0.00013373,2]
[356706260,1742997032563,-504.9364371,0.00013373,2]
[356706261,1742997032573,-500.0,0.00013373,2]
[356706262,1742997032584,-502.30329196,0.00013373,2]
[356706263,1742997032594,-500.0,0.00013373,2]
[356706264,1742997032605,-500.0,0.00013373,2]
[356706265,1742997032615,-500.0,0.00013373,2]
[356706266,1742997032625,-500.0,0.00013373,2]
[356706267,1742997032635,-500.0,0.00013373,2]
[356706268,1742997032649,-500.0,0.00013373,2]
[356706269,1742997032658,-501.7407927,0.00013373,2]
[356706270,1742997032668,-500.0,0.00013373,2]
[356706271,1742997032677,-500.50626638,0.00013373,2]
[356706272,1742997032687,-500.0,0.00013373,2]
[356706273,1742997032696,-500.0,0.00013373,2]
[356706274,1742997032705,-500.0,0.00013373,2]
[356706275,1742997032715,-500.0,0.00013373,2]
[356706276,1742997032724,-500.0,0.00013699,2]
[356706277,1742997032733,-500.0,0.00013699,2]
[356706278,1742997032743,-500.0,0.00013699,2]
[356706279,1742997032752,-201.77947515,0.00013699,2]
[356706280,1742997032762,-316.00943013,0.00013876,2]
[356706281,1742997032772,-2514.5168109,0.000139,2]
[356706282,1742997032782,-5000.0,0.00014367,2]
[356706283,1742997032791,-322000.0,0.00014798,2]
[356706284,1742997032801,-4906.29021817,0.00014898,2]
[356706285,1742997032811,-163.62928467,0.000149,2]
[356706286,1742997032820,-500.0,0.00014973,2]
[356706287,1742997032830,-600.0,0.00014991,2]
[356706288,1742997032839,-43000.0,0.00015,2]
[356706289,1742997032849,-14697.06932062,0.00015,2]
[356706290,1742997032859,-622.2,0.00015046,2]
[356706291,1742997032868,-2514.51681066,0.00015072,2]
[356706292,1742997032878,-535.09472143,0.0001522,2]
[356706294,1742997032888,-161.766,0.0001574,2]
[356706295,1742997032901,-2514.51681066,0.00016245,2]
[356706296,1742997032911,-2514.51681066,0.00017417,2]
[356706297,1742997032921,-1659.30773911,0.00018079,2]
[356706298,1742997032930,-500.0,0.0001824,2]
[356706299,1742997032939,-500.0,0.0001824,2]
[356706300,1742997032949,-500.0,0.0001824,2]
[356706301,1742997032958,-500.0,0.0001824,2]
[356706302,1742997032968,-500.0,0.0001824,2]
[356706303,1742997032977,-500.0,0.0001824,2]
[356706304,1742997032987,-500.0,0.0001824,2]
[356706305,1742997032997,-500.0,0.0001824,2]
[356706306,1742997033007,-500.0,0.0001824,2]
[356706307,1742997033016,-600.0,0.0001824,2]
[356706308,1742997033027,-500.0,0.0001824,2]
[356706309,1742997033036,-500.0,0.0001824,2]
[356706310,1742997033047,-500.0,0.0001824,2]
[356706311,1742997033058,-500.0,0.0001824,2]
[356706312,1742997033069,-500.0,0.0001824,2]
[356706313,1742997033079,-500.0,0.0001824,2]
[356706314,1742997033089,-500.0,0.0001824,2]
[356706315,1742997033100,-500.0,0.0001824,2]
[356706316,1742997033110,-500.0,0.0001824,2]
[356706317,1742997033120,-500.0,0.0001824,2]
[356706318,1742997033131,-500.0,0.0001824,2]
[356706319,1742997033142,-500.0,0.0001824,2]
[356706320,1742997033153,-500.0,0.0001824,2]
[356706321,1742997033163,-500.0,0.0001824,2]
[356706322,1742997033173,-500.0,0.0001824,2]
[356706323,1742997033184,-993.34627301,0.0001824,2]
[356706324,1742997033196,-500.0,0.0001824,2]
[356706325,1742997033206,-150.0,0.00018274,2]
[356706326,1742997033216,-541.0,0.00018274,2]
[356706327,1742997033226,-1915.0,0.00018274,2]
[356706328,1742997033236,-2263.0,0.00018274,2]
[356706329,1742997033245,-500.0,0.0001842,2]
[356706330,1742997033255,-500.0,0.0001842,2]
[356706331,1742997033265,-500.0,0.0001842,2]
[356706332,1742997033275,-500.0,0.0001842,2]
[356706333,1742997033286,-500.0,0.0001842,2]
[356706334,1742997033296,-500.0,0.0001842,2]
[356706335,1742997033307,-500.0,0.0001842,2]
[356706336,1742997033316,-500.0,0.0001842,2]
[356706337,1742997033327,-2514.51681066,0.0001859,2]
[356706338,1742997033336,-159.22,0.000186,2]
[356706339,1742997033346,-1000.0,0.00018852,2]
[356706340,1742997033355,-1000.0,0.00018852,2]
[356706341,1742997033367,-1000.0,0.00018852,2]
[356706342,1742997033376,-1000.0,0.00018852,2]
[356706343,1742997033385,-1000.0,0.00018852,2]
[356706344,1742997033397,-1000.0,0.00018852,2]
[356706345,1742997033407,-1000.0,0.00018852,2]
[356706346,1742997033417,-1000.0,0.00018852,2]
[356706347,1742997033426,-1000.0,0.00018852,2]
[356706348,1742997033435,-1000.0,0.00018852,2]
[356706349,1742997033444,-501.86622543,0.00018852,2]
[356706350,1742997033454,-2514.51681066,0.00019762,2]
[356706351,1742997033463,-500.0,0.00019773,2]
[356706352,1742997033472,-35090.49475291,0.000198,2]
[356706353,1742997033482,-10069.33303911,0.000198,2]
[356706354,1742997033491,-20000.0,0.000198,2]
[356706355,1742997033501,-6810.0,0.0002,2]
[356706356,1742997033511,-300.0,0.0002,8]
[356706357,1742997033520,-1087.115787,0.0002,5]
[356706358,1742997033530,-160.0,0.0002,3]
[356706359,1742997033540,-1251.3008722,0.00020175,2]
[356706360,1742997033550,-360.0165198,0.000202,2]
[356706361,1742997033560,-187.427863,0.000202,2]
[356706362,1742997033569,-187.427863,0.000202,2]
[356706363,1742997033579,-1000.0,0.00020452,2]
[356706364,1742997033588,-418.40181814,0.00020488,2]
[356706365,1742997033597,-160.0,0.00020488,2]
[356706366,1742997033607,-834.83451184,0.00020488,2]
[356706367,1742997033616,-160.0,0.00020503,2]
[356706368,1742997033626,-160.0,0.00020503,2]
[356706369,1742997033634,-12458.93820146,0.00020503,2]
[356706370,1742997033646,-1744.96,0.000207,15]
[356706371,1742997033655,-2500.0,0.0002073,2]
[356706372,1742997033665,-2500.0,0.00020738,2]
[356706373,1742997033674,-2500.0,0.00020747,2]
[356706374,1742997033684,-2500.0,0.00020756,2]
[356706375,1742997033693,-293.94734589,0.00020799,2]
[356706376,1742997033703,-4238.19016428,0.000208,2]
[356706377,1742997033713,-2514.51681066,0.00020934,2]
[356706378,1742997033722,-5464.7453286,0.00020999,2]
[356706379,1742997033731,-18202.87475164,0.00021,2]
[356706380,1742997033741,-3000.0,0.00021,2]
[356706381,1742997033750,-151.0,0.00021,3]
[356706382,1742997033759,-200.0,0.00021,2]
[356706383,1742997033769,-5486.126522,0.0002101,2]
[356706384,1742997033778,-187.427863,0.00021022,2]
[356706385,1742997033788,-187.427863,0.00021022,2]
[356706386,1742997033797,-150.0,0.00021151,2]
[356706387,1742997033807,-500.0,0.00021246,2]
[356706388,1742997033817,-500.0,0.00021246,2]
[356706389,1742997033826,-500.0,0.00021246,2]
[356706390,1742997033836,-409.77917148,0.00021246,2]
[356706391,1742997033846,-150.0,0.00021274,2]
[356706392,1742997033855,-541.0,0.00021274,2]
[356706393,1742997033864,-1915.0,0.00021274,2]
[356706394,1742997033873,-2263.0,0.00021274,2]
[356706395,1742997033883,-500.0,0.00021461,2]
[356706396,1742997033894,-500.0,0.00021461,2]
[356706397,1742997033904,-500.0,0.00021461,2]
[356706398,1742997033914,-500.0,0.00021461,2]
[356706399,1742997033924,-500.0,0.00021461,2]
[356706400,1742997033933,-500.0,0.00021461,2]
[356706401,1742997033943,-500.0,0.00021461,2]
[356706402,1742997033952,-500.0,0.00021461,2]